fUST/lending_fUST_20260427
["ID","MTS","AMOUNT","RATE_DAILY","PERIOD"]
[421204770,1777249846805,-53.97049942,0.00017982,2]
[421204771,1777249846817,-2329.18508868,0.00017982,2]
[421204772,1777249846829,-31972.2982341,0.00017982,2]
[421204773,1777249846839,-345.97498411,0.00018255,2]
[421204774,1777249846848,-150.11,0.00018268,2]
[421204776,1777249846858,-150.18,0.000183,2]
[421204778,1777249846868,-152.0,0.00018387,7]
[421204779,1777249846878,-152.0,0.00018387,7]
[421204781,1777249846888,-744.64351657,0.00018441,2]
[421204784,1777249846899,-586.36369892,0.00018441,2]
[421204786,1777249846910,-1716.68993061,0.00018441,2]
[421204788,1777249846920,-165.37712,0.00018473,2]
[421204790,1777249846930,-3322.0270521,0.00018473,2]
[421204792,1777249846939,-2537.2529507,0.00018473,2]
[421204794,1777249846948,-345.97498411,0.00018529,2]
[421204796,1777249846957,-345.97498411,0.00018803,2]
[421204798,1777249846967,-203.356,0.000189,2]
[421204800,1777249846976,-231.0,0.00018997,2]
[421204802,1777249846985,-274.98229535,0.00019,2]
[421204804,1777249846995,-500.0,0.00019,2]
[421204806,1777249847005,-914.0,0.00019,2]
[421204808,1777249847014,-544.0,0.00019,2]
[421204810,1777249847024,-186.0,0.00019,2]
[421204811,1777249847033,-3498.0,0.00019,2]
[421204813,1777249847043,-211.0,0.00019,2]
[421204815,1777249847052,-2368.19397182,0.00019078,2]
[421204817,1777249847062,-32062.12730733,0.00019078,2]
[421204819,1777249847072,-216.37,0.00019084,2]
[421204821,1777249847082,-151.0,0.000191,2]
[421204823,1777249847091,-185.0,0.00019148,2]
[421204825,1777249847100,-155.0,0.00019177,2]
[421204827,1777249847110,-500.0,0.00019178,2]
[421204830,1777249847120,-500.0,0.00019178,2]
[421204831,1777249847128,-2013.48,0.00019178,2]
[421204833,1777249847138,-449.80354416,0.00019178,2]
[421204835,1777249847147,-301.16693664,0.00019178,2]
[421204837,1777249847157,-1468.29,0.00019178,2]
[421204840,1777249847167,-500.0,0.00019178,2]
[421204842,1777249847177,-500.0,0.00019178,2]
[421204844,1777249847186,-500.0,0.00019178,2]
[421204846,1777249847195,-639.50508183,0.00019178,2]
[421204848,1777249847204,-1127.73170883,0.00019178,2]
[421205220,1777249851612,501.40206983,0.00025408,120]
[421205221,1777249851903,501.40206983,0.00025408,120]
[421205222,1777249852205,501.40206983,0.00025408,120]
[421205223,1777249852501,501.40206983,0.00025408,120]
[421205224,1777249852799,501.40206983,0.00025408,120]
[421205225,1777249853172,501.40206983,0.00025408,120]
[421205226,1777249853477,501.40206983,0.00025408,120]
[421205227,1777249853695,501.40206983,0.00025408,120]
[421205228,1777249854026,501.40206983,0.00025408,120]
[421205229,1777249854327,501.40206983,0.00025408,120]
[421205230,1777249854623,501.40206983,0.00025408,120]
[421205231,1777249856459,501.40206983,0.00025408,120]
[421205232,1777249856799,501.40206983,0.00025408,120]
[421205233,1777249857094,501.40206983,0.00025408,120]
[421205234,1777249857398,501.40206983,0.00025408,120]
[421205235,1777249857990,501.40206983,0.00025408,120]
[421205236,1777249858285,501.40206983,0.00025408,120]
[421205237,1777249858601,501.40206983,0.00025408,120]
[421205238,1777249858893,501.40206983,0.00025408,120]
[421205239,1777249859224,501.40206983,0.00025408,120]
[421205240,1777249859552,501.40206983,0.00025408,120]
[421205241,1777249859922,501.40206983,0.00025408,120]
[421205242,1777249860321,501.40206983,0.00025408,120]
[421205243,1777249860637,501.40206983,0.00025408,120]
[421205244,1777249860932,501.40206983,0.00025408,120]
[421205245,1777249861236,501.40206983,0.00025408,120]
[421205246,1777249861662,501.40206983,0.00025408,120]
[421205247,1777249862019,501.40206983,0.00025408,120]
[421205248,1777249862288,501.40206983,0.00025408,120]
[421205249,1777249862595,501.40206983,0.00025408,120]
[421205257,1777250091561,173.66604862,0.00025408,120]
[421205258,1777250091805,157.09559427,0.00025408,120]
[421205259,1777250092235,173.66604862,0.00025408,120]
[421205309,1777250826126,-285.48410319,0.00012514,2]
[421205313,1777250947300,-1153.95692031,0.00012265,2]
[421205314,1777250947324,-5000.0,0.00012389,2]
[421205315,1777250947346,-4714.51589681,0.00012514,2]
[421205316,1777250947369,-150.0,0.00012704,2]
[421205317,1777250947391,-183.0,0.00012767,2]
[421205318,1777250947413,-1000.0,0.00013699,2]
[421205319,1777250947439,-300.0,0.00013972,2]
[421205320,1777250947464,-300.0,0.00013972,2]
[421205321,1777250947489,-300.0,0.00013972,2]
[421205322,1777250947515,-300.0,0.00013972,2]
[421205323,1777250947540,-300.0,0.00013972,2]
[421205324,1777250947566,-300.0,0.00013972,2]
[421205325,1777250947592,-300.0,0.00013972,2]
[421205326,1777250947617,-300.0,0.00013972,2]
[421205327,1777250947644,-300.0,0.00013972,2]
[421205328,1777250947669,-300.0,0.00013972,2]
[421205329,1777250947694,-300.0,0.00013972,2]
[421205330,1777250947720,-300.0,0.00013972,2]
[421205331,1777250947745,-300.0,0.00013972,2]
[421205332,1777250947770,-300.0,0.00013972,2]
[421205333,1777250947795,-300.0,0.00013972,2]
[421205334,1777250947818,-1124.73935866,0.00013972,2]
[421205342,1777251032565,-508.4635813,0.00013694,2]
[421205343,1777251032578,-1893.04825941,0.00013694,2]
[421205345,1777251032587,-150.0,0.00013763,2]
[421205347,1777251032597,-5000.0,0.00013832,2]
[421205349,1777251032606,-163.23252058,0.00015607,2]
[421205351,1777251032616,-177.0,0.00015763,2]
[421205353,1777251032625,-1200.0,0.00017681,2]
[421205355,1777251032635,-172.98749209,0.00017682,2]
[421205357,1777251032644,-204.0,0.00017763,2]
[421205359,1777251032653,-253.29089729,0.00017781,2]
[421205361,1777251032663,-465.88935531,0.00017781,2]
[421205363,1777251032672,-171.37464233,0.00017781,2]
[421205364,1777251032681,-300.0,0.00017781,2]
[421205366,1777251032691,-1039.92937439,0.00017782,2]
[421205368,1777251032703,-1710.95509454,0.00017782,2]
[421205370,1777251032714,-3130.99473874,0.00017782,2]
[421205372,1777251032726,-4936.21889921,0.00017782,2]
[421205444,1777251039269,-658.97597581,0.00017782,2]
[421205445,1777251039278,-906.48402419,0.00017782,2]
[421205448,1777251039289,-1198.5260203,0.00017782,2]
[421205574,1777251041688,-161.88179883,0.00017782,2]
[421205576,1777251041704,-560.6225,0.00017782,2]
[421205582,1777251041753,-3779.90698828,0.00017782,2]
[421205584,1777251041766,-1516.18177517,0.00017782,2]
[421205586,1777251041778,-458.9215886,0.00017782,2]
[421205634,1777251044002,-380.183,0.00017604,2]
[421205637,1777251044014,-4619.817,0.00017604,2]
[421205639,1777251044024,-7717.6909093,0.00017782,2]
[421205643,1777251044053,-2083.19145122,0.00017782,2]
[421205645,1777251044064,-1745.15765684,0.00017782,2]
[421205650,1777251044108,-488.57025586,0.00017782,2]
[421205651,1777251044123,-250.820863,0.00017782,2]
[421205661,1777251046955,-88300.27859341,0.00017782,2]
[421205674,1777251644344,2532.40363898,7.6e-05,2]
[421205675,1777251644370,5000.0,7.6e-05,2]
[421205676,1777251644392,5000.0,7.6e-05,2]
[421205677,1777251644416,5000.0,7.6e-05,2]
[421205678,1777251644713,5000.0,7.6e-05,2]
[421205679,1777251644737,5000.0,7.6e-05,2]
[421205680,1777251644761,5000.0,7.6e-05,2]
[421205681,1777251644782,5000.0,7.6e-05,2]
[421205682,1777251644804,5000.0,7.6e-05,2]
[421205683,1777251644826,5000.0,7.6e-05,2]
[421205684,1777251644848,5000.0,7.6e-05,2]
[421205685,1777251644871,5000.0,7.6e-05,2]
[421205686,1777251644894,5000.0,7.6e-05,2]
[421205687,1777251644916,5000.0,7.6e-05,2]
[421205688,1777251644939,5000.0,7.6e-05,2]
[421205689,1777251644961,5000.0,7.6e-05,2]
[421205690,1777251644988,5000.0,7.6e-05,2]
[421205691,1777251645011,5000.0,7.6e-05,2]
[421205692,1777251645033,5000.0,7.6e-05,2]
[421205693,1777251645054,3730.78837385,7.6e-05,2]
[421205704,1777251865011,-161.9,7.92e-05,2]
[421205733,1777252038115,-5000.0,7.685e-05,2]
[421205734,1777252038137,-1151.4640364,7.763e-05,2]
[421205737,1777252165342,-5000.0,7.685e-05,2]
[421205738,1777252165364,-2.49288391,7.763e-05,2]
[421205739,1777252165385,-285.48410319,7.841e-05,2]
[421205740,1777252165412,-150.0,7.96e-05,2]
[421205741,1777252165433,-529.36732256,8e-05,2]
[421205742,1777252165454,-177.0,9.96e-05,2]
[421205743,1777252165475,-74.67875896,0.0001196,2]
[421205744,1777252171135,-2097.41524542,0.0001184,2]
[421205763,1777252231856,-614.72159241,0.0001184,2]
[421205764,1777252231866,-129.32124104,0.0001196,2]
[421205765,1777252231876,-1000.0,0.00013699,2]
[421205766,1777252231886,-1269.72,0.00013853,2]
[421205767,1777252231895,-231.0,0.0001396,2]
[421205769,1777252231905,-300.0,0.00014236,2]
[421205770,1777252231915,-1200.0,0.00014236,2]
[421205772,1777252231924,-2175.56415694,0.00014237,2]
[421205774,1777252231935,-576.07401269,0.00014237,2]
[421205777,1777252231950,-517.75085583,0.00014237,2]
[421205779,1777252231962,-1380.56441874,0.00014237,2]
[421205802,1777252238101,-453.0,0.00014237,2]
[421205803,1777252238113,-3585.36740699,0.00014237,2]
[421205804,1777252238222,-8138.84099261,0.00014237,2]
[421205805,1777252238232,-300.0,0.00014238,2]
[421205806,1777252238242,-300.0,0.00014238,2]
[421205807,1777252238252,-300.0,0.00014238,2]
[421205808,1777252238262,-300.0,0.00014238,2]
[421205809,1777252238271,-300.0,0.00014238,2]
[421205810,1777252238281,-300.0,0.00014238,2]
[421205811,1777252238290,-300.0,0.00014238,2]
[421205812,1777252238300,-300.0,0.00014238,2]
[421205813,1777252238310,-300.0,0.00014238,2]
[421205814,1777252238319,-300.0,0.00014238,2]
[421205815,1777252238329,-300.0,0.00014238,2]
[421205816,1777252238338,-300.0,0.00014238,2]
[421205817,1777252238348,-300.0,0.00014238,2]
[421205818,1777252238358,-300.0,0.00014238,2]
[421205819,1777252238367,-300.0,0.00014238,2]
[421205820,1777252238377,-600.0,0.00014522,2]
[421205821,1777252238386,-403.41609431,0.00015552,2]
[421205822,1777252238396,-420.0,0.00015593,2]
[421205823,1777252238406,-1200.0,0.0001566,2]
[421205824,1777252238416,-258.0,0.0001596,2]
[421205825,1777252238425,-720.0,0.00015974,2]
[421205826,1777252238435,-785.0,0.000161,2]
[421205827,1777252238444,-500.0,0.0001637,2]
[421205828,1777252238454,-151.36405557,0.00016522,2]
[421205829,1777252238463,-177.35,0.00016622,2]
[421205830,1777252238472,-151.36405554,0.00017044,2]
[421205831,1777252238482,-587.0,0.00017078,2]
[421205832,1777252238491,-500.0,0.00017189,2]
[421205833,1777252238500,-151.7359061,0.0001738,2]
[421205834,1777252238508,-151.36405554,0.00017565,2]
[421205835,1777252238518,-864.0,0.00017571,2]
[421205836,1777252238527,-331.8483618,0.00017581,2]
[421205837,1777252238539,-243.85326136,0.00017581,2]
[421205838,1777252238549,-199.70405808,0.00017581,2]
[421205839,1777252238558,-323.72266507,0.00017581,2]
[421205840,1777252238568,-17304.55574612,0.00017582,2]
[421205841,1777252238577,-200908.80815201,0.00017582,2]
[421205842,1777252238587,-500.0,0.00017589,2]
[421205843,1777252238597,-500.0,0.00017589,2]
[421205844,1777252238607,-500.0,0.00017589,2]
[421205845,1777252238616,-500.0,0.00017589,2]
[421205846,1777252238625,-500.0,0.00017589,2]
[421205847,1777252238635,-500.0,0.00017589,2]
[421205848,1777252238644,-500.0,0.00017589,2]
[421205849,1777252238654,-500.0,0.00017589,2]
[421205850,1777252238663,-500.0,0.00017589,2]
[421205851,1777252238672,-500.0,0.00017589,2]
[421205852,1777252238682,-500.0,0.00017589,2]
[421205853,1777252238692,-500.0,0.00017589,2]
[421205854,1777252238701,-477.74120207,0.00017589,2]
[421205855,1777252238711,-162.685,0.00017681,2]
[421205856,1777252238721,-500.0,0.00017681,2]
[421205857,1777252238730,-558.66702267,0.00017681,3]
[421205858,1777252238748,-154.30776331,0.00017782,2]
[421205859,1777252238760,-525.0,0.00017793,2]
[421205860,1777252238770,-525.0,0.00017793,2]
[421205861,1777252238780,-525.0,0.00017793,2]
[421205862,1777252238790,-525.0,0.00017793,2]
[421205863,1777252238799,-525.0,0.00017793,2]
[421205864,1777252238809,-525.0,0.00017793,2]
[421205865,1777252238819,-525.0,0.00017793,2]
[421205866,1777252238829,-525.0,0.00017793,2]
[421205867,1777252238839,-525.0,0.00017793,2]
[421205868,1777252238849,-525.0,0.00017793,2]
[421205869,1777252238858,-525.0,0.00017793,2]
[421205870,1777252238868,-525.0,0.00017793,2]
[421205871,1777252238878,-525.0,0.00017793,2]
[421205872,1777252238888,-525.0,0.00017793,2]
[421205873,1777252238898,-525.0,0.00017793,2]
[421205874,1777252238907,-525.0,0.00017793,2]
[421205875,1777252238917,-525.0,0.00017793,2]
[421205876,1777252238927,-525.0,0.00017793,2]
[421205877,1777252238937,-525.0,0.00017793,2]
[421205878,1777252238946,-525.0,0.00017793,2]
[421205879,1777252238956,-525.0,0.00017793,2]
[421205880,1777252238965,-525.0,0.00017793,2]
[421205881,1777252238976,-525.0,0.00017793,2]
[421205882,1777252238985,-546.88058012,0.00017793,2]
[421205883,1777252238995,-500.0,0.00017793,2]
[421205884,1777252239005,-500.0,0.00017793,2]
[421205885,1777252239015,-500.0,0.00017793,2]
[421205886,1777252239025,-500.0,0.00017793,2]
[421205887,1777252239035,-500.0,0.00017793,2]
[421205888,1777252239045,-500.0,0.00017793,2]
[421205889,1777252239055,-535.89710033,0.00017793,2]
[421205890,1777252239064,-500.0,0.00017793,2]
[421205891,1777252239074,-500.0,0.00017793,2]
[421205892,1777252239085,-500.0,0.00017793,2]
[421205893,1777252239095,-500.0,0.00017793,2]
[421205894,1777252239104,-500.0,0.00017793,2]
[421205895,1777252239114,-219.13030481,0.00017793,2]
[421205896,1777252239123,-194.36672979,0.00017863,2]
[421205897,1777252239133,-163.83909932,0.00017863,2]
[421205898,1777252239143,-261.46984455,0.00017863,2]
[421205899,1777252239154,-151.0,0.00017864,2]
[421205900,1777252239163,-151.0,0.0001787,2]
[421205901,1777252239173,-3853.0,0.000179,2]
[421205902,1777252239182,-285.0,0.0001796,2]
[421205903,1777252239192,-416.58593199,0.00017967,2]
[421205904,1777252239205,-523.0,0.00018067,2]
[421205905,1777252239215,-523.0,0.00018067,2]
[421205906,1777252239224,-523.0,0.00018067,2]
[421205907,1777252239233,-523.0,0.00018067,2]
[421205908,1777252239243,-523.0,0.00018067,2]
[421205909,1777252239252,-523.0,0.00018067,2]
[421205910,1777252239262,-500.0,0.00018067,2]
[421205911,1777252239272,-523.0,0.00018067,2]
[421205912,1777252239281,-500.0,0.00018067,2]
[421205913,1777252239291,-523.0,0.00018067,2]
[421205914,1777252239299,-500.0,0.00018067,2]
[421205915,1777252239308,-500.0,0.00018067,2]
[421205916,1777252239317,-500.0,0.00018067,2]
[421205917,1777252239326,-523.0,0.00018067,2]
[421205918,1777252239335,-503.49821131,0.00018067,2]
[421205919,1777252239344,-523.0,0.00018067,2]
[421205920,1777252239354,-523.0,0.00018067,2]
[421205921,1777252239364,-523.0,0.00018067,2]
[421205922,1777252239374,-523.0,0.00018067,2]
[421205923,1777252239384,-523.0,0.00018067,2]
[421205924,1777252239394,-523.0,0.00018067,2]
[421205925,1777252239404,-523.0,0.00018067,2]
[421205926,1777252239414,-523.0,0.00018067,2]
[421205927,1777252239424,-523.0,0.00018067,2]
[421205928,1777252239433,-523.0,0.00018067,2]
[421205929,1777252239443,-523.0,0.00018067,2]
[421205930,1777252239452,-523.0,0.00018067,2]
[421205931,1777252239462,-523.0,0.00018067,2]
[421205932,1777252239471,-523.0,0.00018067,2]
[421205933,1777252239481,-524.641568,0.00018067,2]
[421205934,1777252239491,-207.85426579,0.00018082,2]
[421205935,1777252239500,-151.36405554,0.00018087,2]
[421205936,1777252239510,-537.6845,0.00018162,2]
[421205937,1777252239520,-2150.738,0.00018162,2]
[421205938,1777252239530,-557.5788265,0.00018217,2]
[421205939,1777252239539,-416.58593195,0.00018245,2]
[421205940,1777252239549,-578.20924308,0.00018272,2]
[421205941,1777252239559,-599.60298507,0.00018327,2]
[421205942,1777252239569,-155.0,0.00018355,2]
[421205943,1777252239578,-621.78829552,0.00018382,2]
[421205944,1777252239588,-906.6384161,0.00018415,2]
[421205945,1777252239598,-644.79446245,0.00018437,2]
[421205946,1777252239607,-416.58593195,0.00018523,2]
[421205948,1777252239617,-151.36405554,0.00018608,2]
[421205950,1777252239627,-325.4780488,0.00018686,2]
[421205952,1777252239636,-151.0,0.00018695,2]
[421205955,1777252239646,-823.0,0.00018706,2]
[421205956,1777252239656,-416.58593195,0.000188,2]
[421205958,1777252239665,-3853.0,0.000189,2]
[421205959,1777252239675,-1366.0,0.00019,2]
[421205960,1777252239684,-1692.35446879,0.00019,30]
[421205963,1777252239694,-416.58593195,0.00019078,2]
[421205964,1777252239703,-160.0,0.0001911,7]
[421205965,1777252239713,-3218.077718,0.0001911,7]
[421205966,1777252239722,-6276.155436,0.0001911,7]
[421205967,1777252239732,-160.0,0.0001911,2]
[421205968,1777252239741,-593.986154,0.0001911,2]
[421205969,1777252239751,-1027.972308,0.0001911,2]
[421205971,1777252239761,-151.36405554,0.0001913,2]
[421205972,1777252239770,-1668.702478,0.00019178,2]
[421205973,1777252239779,-500.0,0.00019178,2]
[421205974,1777252239789,-500.0,0.00019178,2]
[421205975,1777252239798,-500.0,0.00019178,2]
[421205976,1777252239807,-1132.63,0.00019178,2]
[421205977,1777252239817,-984.55,0.00019178,2]
[421205978,1777252239826,-1518.44,0.00019178,2]
[421205979,1777252239836,-500.0,0.00019178,2]
[421205980,1777252239845,-500.0,0.00019178,2]
[421205981,1777252239854,-500.0,0.00019178,2]
[421205982,1777252239864,-516.88,0.00019178,2]
[421205983,1777252239874,-500.0,0.00019178,2]
[421205985,1777252239883,-500.0,0.00019178,2]
[421205987,1777252239893,-2682.82,0.00019178,2]
[421205988,1777252239902,-500.0,0.00019178,2]
[421205989,1777252239912,-610.95671811,0.00019178,2]
[421205990,1777252239922,-500.0,0.00019178,2]
[421205991,1777252239931,-500.0,0.00019178,2]
[421205993,1777252239941,-500.0,0.00019178,2]
[421205994,1777252239951,-500.0,0.00019178,2]
[421205995,1777252239960,-500.0,0.00019178,2]
[421205996,1777252239970,-500.0,0.00019178,2]
[421205997,1777252239980,-500.0,0.00019178,2]
[421205998,1777252239989,-600.95,0.00019178,2]
[421205999,1777252239999,-1578.43,0.00019178,2]
[421206000,1777252240008,-500.0,0.00019178,2]
[421206001,1777252240018,-500.0,0.00019178,2]
[421206002,1777252240028,-500.0,0.00019178,2]
[421206003,1777252240038,-615.84,0.00019178,2]
[421206004,1777252240047,-516.58,0.00019178,2]
[421206005,1777252240056,-500.0,0.00019178,2]
[421206006,1777252240066,-500.0,0.00019178,2]
[421206007,1777252240075,-500.0,0.00019178,2]
[421206008,1777252240085,-500.0,0.00019178,2]
[421206009,1777252240094,-500.0,0.00019178,2]
[421206010,1777252240104,-500.0,0.00019178,2]
[421206011,1777252240114,-1013.71,0.00019178,2]
[421206012,1777252240123,-500.0,0.00019178,2]
[421206013,1777252240134,-1025.53,0.00019178,2]
[421206014,1777252240143,-2568.39,0.00019178,2]
[421206015,1777252240153,-500.0,0.00019178,2]
[421206016,1777252240163,-500.0,0.00019178,2]
[421206017,1777252240173,-500.0,0.00019178,2]
[421206018,1777252240183,-500.0,0.00019178,2]
[421206019,1777252240192,-500.0,0.00019178,2]
[421206020,1777252240202,-677.04,0.00019178,2]
[421206021,1777252240212,-500.0,0.00019178,2]
[421206022,1777252240222,-500.0,0.00019178,2]
[421206023,1777252240233,-500.0,0.00019178,2]
[421206024,1777252240243,-500.0,0.00019178,2]
[421206025,1777252240253,-500.0,0.00019178,2]
[421206026,1777252240263,-1184.56,0.00019178,2]
[421206027,1777252240274,-197.11744827,0.00019178,2]
[421206028,1777252240284,-2591.09,0.00019178,2]
[421206029,1777252240294,-2017.13,0.00019178,2]
[421206030,1777252240304,-409.25591233,0.00019178,2]
[421206031,1777252240314,-618.86757895,0.00019178,2]
[421206032,1777252240324,-573.04405094,0.00019178,2]
[421206033,1777252240335,-500.0,0.00019178,2]
[421206034,1777252240345,-663.72,0.00019178,2]
[421206035,1777252240355,-500.0,0.00019178,2]
[421206036,1777252240365,-500.0,0.00019178,2]
[421206037,1777252240376,-500.0,0.00019178,2]
[421206038,1777252240386,-500.0,0.00019178,2]
[421206039,1777252240396,-500.0,0.00019178,2]
[421206040,1777252240407,-1510.86,0.00019178,2]
[421206041,1777252240418,-500.0,0.00019178,2]
[421206042,1777252240428,-500.0,0.00019178,2]
[421206043,1777252240438,-1069.68,0.00019178,2]
[421206044,1777252240448,-1473.6,0.00019178,2]
[421206045,1777252240458,-500.0,0.00019178,2]
[421206046,1777252240468,-500.0,0.00019178,2]
[421206048,1777252240479,-500.0,0.00019178,2]
[421206049,1777252240489,-500.0,0.00019178,2]
[421206050,1777252240499,-500.0,0.00019178,2]
[421206051,1777252240509,-1371.79,0.00019178,2]
[421206052,1777252240519,-359.33834115,0.00019178,2]
[421206053,1777252240530,-500.0,0.00019178,2]
[421206054,1777252240540,-151.0,0.00019178,2]
[421206055,1777252240550,-500.0,0.00019178,2]
[421206056,1777252240560,-500.0,0.00019178,2]
[421206057,1777252240570,-500.0,0.00019178,2]
[421206058,1777252240580,-500.0,0.00019178,2]
[421206059,1777252240589,-1552.88,0.00019178,2]
[421206061,1777252240599,-500.0,0.00019178,2]
[421206062,1777252240609,-500.0,0.00019178,2]
[421206063,1777252240618,-434.53,0.00019178,2]
[421206064,1777252240628,-500.0,0.00019178,2]
[421206065,1777252240638,-1607.24,0.00019178,2]
[421206066,1777252240647,-500.0,0.00019178,2]
[421206067,1777252240658,-500.0,0.00019178,2]
[421206068,1777252240668,-669.09,0.00019178,2]
[421206069,1777252240677,-500.0,0.00019178,2]
[421206070,1777252240687,-500.0,0.00019178,2]
[421206071,1777252240697,-500.0,0.00019178,2]
[421206072,1777252240707,-500.0,0.00019178,2]
[421206073,1777252240716,-584.61,0.00019178,2]
[421206074,1777252240726,-500.0,0.00019178,2]
[421206075,1777252240736,-500.0,0.00019178,2]
[421206076,1777252240745,-942.83,0.00019178,2]
[421206077,1777252240755,-820.65,0.00019178,2]
[421206078,1777252240765,-5598.78,0.00019178,2]
[421206079,1777252240775,-500.0,0.00019178,2]
[421206080,1777252240784,-500.0,0.00019178,2]
[421206081,1777252240794,-500.0,0.00019178,2]
[421206082,1777252240803,-500.0,0.00019178,2]
[421206083,1777252240813,-500.0,0.00019178,2]
[421206084,1777252240823,-500.0,0.00019178,2]
[421206085,1777252240832,-500.0,0.00019178,2]
[421206086,1777252240842,-383.38,0.00019178,2]
[421206087,1777252240852,-500.0,0.00019178,2]
[421206088,1777252240862,-1087.97,0.00019178,2]
[421206089,1777252240871,-238.70613403,0.00019178,2]
[421206090,1777252240880,-500.0,0.00019178,2]
[421206091,1777252240891,-500.0,0.00019178,2]
[421206092,1777252240905,-883.94,0.00019178,2]
[421206093,1777252240915,-500.0,0.00019178,2]
[421206094,1777252240925,-500.0,0.00019178,2]
[421206095,1777252240935,-1348.71,0.00019178,2]
[421206096,1777252240946,-513.5,0.00019178,2]
[421206097,1777252240956,-1932.8,0.00019178,2]
[421206098,1777252240966,-500.0,0.00019178,2]
[421206099,1777252240976,-500.0,0.00019178,2]
[421206100,1777252240986,-237.13447558,0.00019178,2]
[421206101,1777252240996,-500.0,0.00019178,2]
[421206102,1777252241010,-2122.39,0.00019178,2]
[421206103,1777252241020,-500.0,0.00019178,2]
[421206104,1777252241030,-641.33950736,0.00019178,2]
[421206105,1777252241040,-500.0,0.00019178,2]
[421206106,1777252241050,-500.0,0.00019178,2]
[421206107,1777252241060,-680.28,0.00019178,2]
[421206108,1777252241070,-222.27778422,0.00019178,2]
[421206109,1777252241081,-1149.45,0.00019178,2]
[421206110,1777252241090,-500.0,0.00019178,2]
[421206111,1777252241101,-500.0,0.00019178,2]
[421206112,1777252241111,-500.0,0.00019178,2]
[421206113,1777252241121,-500.0,0.00019178,2]
[421206114,1777252241131,-2083.43,0.00019178,2]
[421206115,1777252241141,-554.85,0.00019178,2]
[421206116,1777252241151,-191.12114263,0.00019178,2]
[421206117,1777252241161,-500.0,0.00019178,2]
[421206118,1777252241171,-500.0,0.00019178,2]
[421206119,1777252241183,-630.44268967,0.00019178,2]
[421206120,1777252241193,-500.0,0.00019178,2]
[421206121,1777252241203,-500.0,0.00019178,2]
[421206122,1777252241213,-500.0,0.00019178,2]
[421206123,1777252241224,-500.0,0.00019178,2]
[421206124,1777252241234,-500.0,0.00019178,2]
[421206125,1777252241243,-582.77,0.00019178,2]
[421206126,1777252241254,-500.0,0.00019178,2]
[421206127,1777252241264,-626.72,0.00019178,2]
[421206128,1777252241275,-500.0,0.00019178,2]
[421206129,1777252241285,-500.0,0.00019178,2]
[421206130,1777252241296,-629.79119885,0.00019178,2]
[421206131,1777252241306,-755.79,0.00019178,2]
[421206132,1777252241317,-860.28,0.00019178,2]
[421206133,1777252241327,-1027.57,0.00019178,2]
[421206134,1777252241336,-500.0,0.00019178,2]
[421206135,1777252241346,-480.26806408,0.00019178,2]
[421206136,1777252241356,-500.0,0.00019178,2]
[421206137,1777252241366,-500.0,0.00019178,2]
[421206138,1777252241376,-500.0,0.00019178,2]
[421206139,1777252241386,-500.0,0.00019178,2]
[421206140,1777252241396,-3832.14,0.00019178,2]
[421206141,1777252241406,-967.01,0.00019178,2]
[421206142,1777252241416,-500.0,0.00019178,2]